[Event "Titled Tuesday Blitz April 4 Early 2023"]
[White "Kollars, Dmitrij"]
[Black "Sielecki, Christof"]
[WhiteFideId "12909572"]
[BlackFideId "4620437"]
[WhiteElo "2584"]
[BlackElo "2443"]
[Result "1/2-1/2"]
[Round "06"]
[TimeControl "180+2"]
[Date "2023.04.04"]
[WhiteClock "0:00:06"]
[BlackClock "0:00:05"]

1. Nf3 {[%clk 0:03:00]}  d5 {[%clk 0:02:59]} 2. g3 {[%clk 0:03:00]}  c5 {[%clk 0:02:58]} 3. Bg2 {[%clk 0:03:00]}  Nc6 {[%clk 0:02:58]} 4. d4 {[%clk 0:02:59]}  Nf6 {[%clk 0:02:58]} 5. O-O {[%clk 0:02:59]}  e6 {[%clk 0:02:59]} 6. b3 {[%clk 0:02:53]}  Be7 {[%clk 0:02:57]} 7. Bb2 {[%clk 0:02:53]}  O-O {[%clk 0:02:56]} 8. Nbd2 {[%clk 0:02:52]}  b6 {[%clk 0:02:46]} 9. c4 {[%clk 0:02:52]}  cxd4 {[%clk 0:02:44]} 10. Nxd4 {[%clk 0:02:51]}  Nxd4 {[%clk 0:02:42]} 11. Bxd4 {[%clk 0:02:52]}  Ba6 {[%clk 0:02:42]} 12. Rc1 {[%clk 0:02:42]}  Rc8 {[%clk 0:02:40]} 13. Re1 {[%clk 0:02:42]}  Bb4 {[%clk 0:02:26]} 14. Bc3 {[%clk 0:02:13]}  Bxc3 {[%clk 0:02:20]} 15. Rxc3 {[%clk 0:02:13]}  dxc4 {[%clk 0:02:20]} 16. Nxc4 {[%clk 0:02:11]}  Bxc4 {[%clk 0:02:16]} 17. bxc4 {[%clk 0:02:10]}  Rc5 {[%clk 0:02:09]} 18. Qa4 {[%clk 0:02:01]}  Qc7 {[%clk 0:02:01]} 19. Rec1 {[%clk 0:01:57]}  Rc8 {[%clk 0:02:00]} 20. Qb4 {[%clk 0:01:51]}  g6 {[%clk 0:01:58]} 21. e3 {[%clk 0:01:47]}  Kg7 {[%clk 0:01:57]} 22. Bf3 {[%clk 0:01:46]}  h5 {[%clk 0:01:57]} 23. h4 {[%clk 0:01:45]}  Nd7 {[%clk 0:01:48]} 24. Be2 {[%clk 0:01:43]}  g5 {[%clk 0:01:38]} 25. hxg5 {[%clk 0:01:41]}  Rxg5 {[%clk 0:01:39]} 26. Qe7 {[%clk 0:01:23]}  Nf6 {[%clk 0:01:36]} 27. Qxc7 {[%clk 0:01:21]}  Rxc7 {[%clk 0:01:37]} 28. Kf1 {[%clk 0:01:09]}  Ne4 {[%clk 0:01:30]} 29. Rd3 {[%clk 0:01:08]}  Rf5 {[%clk 0:01:29]} 30. Rd4 {[%clk 0:00:57]}  Nxg3+ {[%clk 0:01:02]} 31. Ke1 {[%clk 0:00:55]}  Nxe2 {[%clk 0:01:01]} 32. Kxe2 {[%clk 0:00:56]}  Rfc5 {[%clk 0:01:01]} 33. a4 {[%clk 0:00:52]}  a6 {[%clk 0:01:00]} 34. Rf4 {[%clk 0:00:31]}  Kf8 {[%clk 0:00:53]} 35. Rb1 {[%clk 0:00:25]}  Rxc4 {[%clk 0:00:52]} 36. Rxb6 {[%clk 0:00:24]}  Rxf4 {[%clk 0:00:44]} 37. exf4 {[%clk 0:00:25]}  Rc4 {[%clk 0:00:44]} 38. Rxa6 {[%clk 0:00:25]}  Rxf4 {[%clk 0:00:44]} 39. a5 {[%clk 0:00:26]}  Ra4 {[%clk 0:00:44]} 40. Ra8+ {[%clk 0:00:26]}  Kg7 {[%clk 0:00:44]} 41. a6 {[%clk 0:00:27]}  Kf6 {[%clk 0:00:40]} 42. Kf3 {[%clk 0:00:25]}  Ke5 {[%clk 0:00:36]} 43. a7 {[%clk 0:00:23]}  f5 {[%clk 0:00:33]} 44. Kg2 {[%clk 0:00:20]}  Ra3 {[%clk 0:00:31]} 45. Rh8 {[%clk 0:00:14]}  Rxa7 {[%clk 0:00:27]} 46. Rxh5 {[%clk 0:00:14]}  Kf4 {[%clk 0:00:24]} 47. Rh4+ {[%clk 0:00:13]}  Kg5 {[%clk 0:00:24]} 48. Rb4 {[%clk 0:00:14]}  e5 {[%clk 0:00:21]} 49. Rc4 {[%clk 0:00:14]}  e4 {[%clk 0:00:20]} 50. Rc8 {[%clk 0:00:12]}  Kf4 {[%clk 0:00:20]} 51. Rh8 {[%clk 0:00:10]}  Ra2 {[%clk 0:00:19]} 52. Kf1 {[%clk 0:00:09]}  Kf3 {[%clk 0:00:16]} 53. Rh3+ {[%clk 0:00:09]}  Kg4 {[%clk 0:00:17]} 54. Rh8 {[%clk 0:00:09]}  f4 {[%clk 0:00:17]} 55. Rh7 {[%clk 0:00:09]}  Kf3 {[%clk 0:00:16]} 56. Rh3+ {[%clk 0:00:09]}  Kg4 {[%clk 0:00:16]} 57. Rh8 {[%clk 0:00:10]}  Ra1+ {[%clk 0:00:16]} 58. Ke2 {[%clk 0:00:09]}  f3+ {[%clk 0:00:16]} 59. Ke3 {[%clk 0:00:08]}  Re1+ {[%clk 0:00:15]} 60. Kd4 {[%clk 0:00:08]}  Re2 {[%clk 0:00:14]} 61. Rg8+ {[%clk 0:00:08]}  Kh3 {[%clk 0:00:13]} 62. Ke5 {[%clk 0:00:07]}  Rxf2 {[%clk 0:00:10]} 63. Kxe4 {[%clk 0:00:07]}  Rg2 {[%clk 0:00:09]} 64. Rf8 {[%clk 0:00:07]}  Rf2 {[%clk 0:00:06]} 65. Ke3 {[%clk 0:00:05]}  Rg2 {[%clk 0:00:03]} 66. Rh8+ {[%clk 0:00:02]}  Kg3 {[%clk 0:00:03]} 67. Rg8+ {[%clk 0:00:03]}  Kh2 {[%clk 0:00:04]} 68. Rf8 {[%clk 0:00:04]}  Kg1 {[%clk 0:00:04]} 69. Rxf3 {[%clk 0:00:03]}  Kh2 {[%clk 0:00:04]} 70. Rf8 {[%clk 0:00:03]}  Rg3+ {[%clk 0:00:04]} 71. Kf2 {[%clk 0:00:03]}  Rg2+ {[%clk 0:00:04]} 72. Kf3 {[%clk 0:00:04]}  Rg3+ {[%clk 0:00:05]} 73. Ke4 {[%clk 0:00:04]}  Kg2 {[%clk 0:00:05]} 74. Rc8 {[%clk 0:00:04]}  Rg4+ {[%clk 0:00:05]} 75. Ke3 {[%clk 0:00:04]}  Rg3+ {[%clk 0:00:05]} 76. Ke2 {[%clk 0:00:05]}  Rg4 {[%clk 0:00:05]} 77. Rc2 {[%clk 0:00:05]}  Kg3 {[%clk 0:00:04]} 78. Ke3 {[%clk 0:00:05]}  Rg8 {[%clk 0:00:03]} 79. Rc3 {[%clk 0:00:04]}  Re8+ {[%clk 0:00:04]} 80. Kd4+ {[%clk 0:00:05]}  Kf4 {[%clk 0:00:04]} 81. Rc4 {[%clk 0:00:05]}  Re4+ {[%clk 0:00:04]} 82. Kd5 {[%clk 0:00:05]}  Rxc4 {[%clk 0:00:05]} 83. Kxc4 {[%clk 0:00:06]} 1/2-1/2


[Site "https://www.chess.com"]

[Event "Titled Tuesday Blitz April 4 Early 2023"]
[White "Pichot, Alan"]
[Black "Jain Kashish Manoj"]
[WhiteFideId "110973"]
[BlackFideId "35081098"]
[WhiteElo "2573"]
[BlackElo "2191"]
[Result "1-0"]
[Round "06"]
[TimeControl "180+2"]
[Date "2023.04.04"]
[WhiteClock "0:00:04"]
[BlackClock "0:00:04"]

1. e4 {[%clk 0:02:42]}  e6 {[%clk 0:02:59]} 2. d4 {[%clk 0:02:38]}  d5 {[%clk 0:03:00]} 3. Nd2 {[%clk 0:02:39]}  Nf6 {[%clk 0:03:00]} 4. e5 {[%clk 0:02:39]}  Nfd7 {[%clk 0:03:00]} 5. Bd3 {[%clk 0:02:39]}  c5 {[%clk 0:03:01]} 6. c3 {[%clk 0:02:39]}  Nc6 {[%clk 0:03:02]} 7. Ne2 {[%clk 0:02:39]}  cxd4 {[%clk 0:03:02]} 8. cxd4 {[%clk 0:02:40]}  f6 {[%clk 0:03:03]} 9. exf6 {[%clk 0:02:40]}  Nxf6 {[%clk 0:03:03]} 10. Nf3 {[%clk 0:02:41]}  Qc7 {[%clk 0:03:04]} 11. O-O {[%clk 0:02:42]}  Bd6 {[%clk 0:03:04]} 12. Bg5 {[%clk 0:02:42]}  O-O {[%clk 0:03:05]} 13. Bh4 {[%clk 0:02:43]}  Nh5 {[%clk 0:03:05]} 14. Qc2 {[%clk 0:02:38]}  h6 {[%clk 0:03:06]} 15. Bh7+ {[%clk 0:02:38]}  Kh8 {[%clk 0:03:06]} 16. Bg6 {[%clk 0:02:38]}  Rxf3 {[%clk 0:03:07]} 17. Bxh5 {[%clk 0:02:38]}  Rf8 {[%clk 0:03:08]} 18. Bg3 {[%clk 0:02:38]}  Bd7 {[%clk 0:03:05]} 19. Rac1 {[%clk 0:02:20]}  Be8 {[%clk 0:02:26]} 20. Bg4 {[%clk 0:02:16]}  Rf6 {[%clk 0:02:20]} 21. a3 {[%clk 0:01:58]}  Bg6 {[%clk 0:02:15]} 22. Qd2 {[%clk 0:01:58]}  Raf8 {[%clk 0:02:07]} 23. b4 {[%clk 0:01:55]}  a6 {[%clk 0:02:06]} 24. Qe3 {[%clk 0:01:41]}  Bxg3 {[%clk 0:01:49]} 25. hxg3 {[%clk 0:01:40]}  e5 {[%clk 0:01:46]} 26. dxe5 {[%clk 0:01:34]}  Qxe5 {[%clk 0:01:47]} 27. Rxc6 {[%clk 0:01:03]}  Qxe3 {[%clk 0:01:35]} 28. Rxf6 {[%clk 0:01:01]}  Qe8 {[%clk 0:01:36]} 29. Re6 {[%clk 0:00:44]}  Qf7 {[%clk 0:00:53]} 30. Nf4 {[%clk 0:00:43]}  Be4 {[%clk 0:00:50]} 31. Bh5 {[%clk 0:00:26]}  Qd7 {[%clk 0:00:32]} 32. Rd1 {[%clk 0:00:24]}  Rxf4 {[%clk 0:00:25]} 33. Re8+ {[%clk 0:00:24]}  Qxe8 {[%clk 0:00:25]} 34. Bxe8 {[%clk 0:00:23]}  Rf8 {[%clk 0:00:26]} 35. Ba4 {[%clk 0:00:22]}  Rd8 {[%clk 0:00:21]} 36. Rd4 {[%clk 0:00:22]}  Bg6 {[%clk 0:00:15]} 37. Bb3 {[%clk 0:00:18]}  Bf7 {[%clk 0:00:15]} 38. f3 {[%clk 0:00:14]}  g5 {[%clk 0:00:16]} 39. Kf2 {[%clk 0:00:15]}  Kg7 {[%clk 0:00:16]} 40. Ke3 {[%clk 0:00:15]}  Kf6 {[%clk 0:00:17]} 41. Bc2 {[%clk 0:00:09]}  Be6 {[%clk 0:00:15]} 42. Rd1 {[%clk 0:00:08]}  Rc8 {[%clk 0:00:16]} 43. Kd2 {[%clk 0:00:06]}  d4 {[%clk 0:00:12]} 44. Rh1 {[%clk 0:00:06]}  Kg7 {[%clk 0:00:11]} 45. Re1 {[%clk 0:00:06]}  Kf6 {[%clk 0:00:11]} 46. Rh1 {[%clk 0:00:06]}  Kg7 {[%clk 0:00:11]} 47. Be4 {[%clk 0:00:07]}  Rc3 {[%clk 0:00:10]} 48. Ra1 {[%clk 0:00:06]}  b6 {[%clk 0:00:10]} 49. a4 {[%clk 0:00:05]}  Rb3 {[%clk 0:00:07]} 50. a5 {[%clk 0:00:06]}  Rxb4 {[%clk 0:00:06]} 51. axb6 {[%clk 0:00:05]}  Rxb6 {[%clk 0:00:07]} 52. Kd3 {[%clk 0:00:05]}  Rd6 {[%clk 0:00:07]} 53. Rb1 {[%clk 0:00:04]}  Bd7 {[%clk 0:00:07]} 54. Rb7 {[%clk 0:00:04]}  Kf6 {[%clk 0:00:08]} 55. Ra7 {[%clk 0:00:05]}  Bb5+ {[%clk 0:00:08]} 56. Kd2 {[%clk 0:00:06]}  Rb6 {[%clk 0:00:05]} 57. f4 {[%clk 0:00:04]}  gxf4 {[%clk 0:00:04]} 58. gxf4 {[%clk 0:00:05]}  h5 {[%clk 0:00:03]} 59. Rh7 {[%clk 0:00:04]}  Be8 {[%clk 0:00:04]} 60. Rh6+ {[%clk 0:00:04]} 1-0


[Site "https://www.chess.com"]

[Event "Titled Tuesday Blitz April 4 Early 2023"]
[White "Albornoz Cabrera, Carlos Daniel"]
[Black "Mendez Fortes, Eduardo Jesus"]
[WhiteFideId "3518736"]
[BlackFideId "3502376"]
[WhiteElo "2516"]
[BlackElo "2307"]
[Result "0-1"]
[Round "06"]
[TimeControl "180+2"]
[Date "2023.04.04"]
[WhiteClock "0:00:24"]
[BlackClock "0:00:04"]

1. e4 {[%clk 0:02:59]}  e5 {[%clk 0:02:58]} 2. Nf3 {[%clk 0:02:59]}  Nc6 {[%clk 0:02:58]} 3. Nc3 {[%clk 0:02:59]}  Nf6 {[%clk 0:02:58]} 4. Bb5 {[%clk 0:02:59]}  Nd4 {[%clk 0:02:55]} 5. Bc4 {[%clk 0:03:00]}  Bc5 {[%clk 0:02:55]} 6. d3 {[%clk 0:02:59]}  d6 {[%clk 0:02:52]} 7. h3 {[%clk 0:02:59]}  h6 {[%clk 0:02:51]} 8. Be3 {[%clk 0:02:59]}  c6 {[%clk 0:02:44]} 9. O-O {[%clk 0:02:59]}  O-O {[%clk 0:02:38]} 10. a3 {[%clk 0:02:55]}  d5 {[%clk 0:02:32]} 11. exd5 {[%clk 0:02:08]}  cxd5 {[%clk 0:02:31]} 12. Ba2 {[%clk 0:02:05]}  Nxf3+ {[%clk 0:02:30]} 13. Qxf3 {[%clk 0:02:06]}  d4 {[%clk 0:02:30]} 14. Na4 {[%clk 0:02:06]}  Bd6 {[%clk 0:01:52]} 15. Bd2 {[%clk 0:02:05]}  Bd7 {[%clk 0:01:48]} 16. b3 {[%clk 0:02:04]}  Bc6 {[%clk 0:01:46]} 17. Qd1 {[%clk 0:02:02]}  e4 {[%clk 0:01:38]} 18. Nb2 {[%clk 0:02:00]}  Bc7 {[%clk 0:01:33]} 19. Bb4 {[%clk 0:01:49]}  Re8 {[%clk 0:01:31]} 20. a4 {[%clk 0:01:49]}  Qd5 {[%clk 0:01:25]} 21. Nc4 {[%clk 0:01:47]}  e3 {[%clk 0:01:21]} 22. Qf3 {[%clk 0:01:45]}  Qg5 {[%clk 0:01:15]} 23. h4 {[%clk 0:01:43]}  Qg6 {[%clk 0:00:43]} 24. Qh3 {[%clk 0:01:44]}  Bd7 {[%clk 0:00:42]} 25. Qh1 {[%clk 0:01:44]}  Ng4 {[%clk 0:00:39]} 26. f4 {[%clk 0:01:34]}  e2 {[%clk 0:00:36]} 27. Rf3 {[%clk 0:01:34]}  Bc6 {[%clk 0:00:32]} 28. g3 {[%clk 0:01:19]}  Qh5 {[%clk 0:00:21]} 29. Re1 {[%clk 0:01:10]}  Ne3 {[%clk 0:00:20]} 30. Nxe3 {[%clk 0:01:09]}  Bxf3 {[%clk 0:00:19]} 31. g4 {[%clk 0:01:05]}  Bxg4 {[%clk 0:00:19]} 32. Ng2 {[%clk 0:00:57]}  Bf3 {[%clk 0:00:18]} 33. Bd2 {[%clk 0:00:56]}  Qg4 {[%clk 0:00:18]} 34. b4 {[%clk 0:00:56]}  Rac8 {[%clk 0:00:13]} 35. Bb3 {[%clk 0:00:55]}  Bd6 {[%clk 0:00:13]} 36. Kf2 {[%clk 0:00:54]}  Bc6 {[%clk 0:00:13]} 37. b5 {[%clk 0:00:52]}  Bf3 {[%clk 0:00:11]} 38. Qh2 {[%clk 0:00:47]}  Bxg2 {[%clk 0:00:09]} 39. Qxg2 {[%clk 0:00:48]}  Qxh4+ {[%clk 0:00:09]} 40. Qg3 {[%clk 0:00:48]}  Qxg3+ {[%clk 0:00:09]} 41. Kxg3 {[%clk 0:00:49]}  g5 {[%clk 0:00:09]} 42. Kf3 {[%clk 0:00:46]}  Bxf4 {[%clk 0:00:09]} 43. Bb4 {[%clk 0:00:43]}  Re5 {[%clk 0:00:07]} 44. Rxe2 {[%clk 0:00:41]}  Rxe2 {[%clk 0:00:06]} 45. Kxe2 {[%clk 0:00:41]}  b6 {[%clk 0:00:06]} 46. Kf3 {[%clk 0:00:40]}  Kg7 {[%clk 0:00:07]} 47. a5 {[%clk 0:00:41]}  Kg6 {[%clk 0:00:07]} 48. a6 {[%clk 0:00:41]}  f5 {[%clk 0:00:07]} 49. Kg2 {[%clk 0:00:32]}  Bb8 {[%clk 0:00:07]} 50. Bc4 {[%clk 0:00:32]}  h5 {[%clk 0:00:07]} 51. c3 {[%clk 0:00:30]}  dxc3 {[%clk 0:00:06]} 52. Bxc3 {[%clk 0:00:31]}  g4 {[%clk 0:00:06]} 53. Bd4 {[%clk 0:00:29]}  h4 {[%clk 0:00:05]} 54. Bb3 {[%clk 0:00:28]}  h3+ {[%clk 0:00:06]} 55. Kf2 {[%clk 0:00:29]}  g3+ {[%clk 0:00:05]} 56. Kf3 {[%clk 0:00:30]}  Rd8 {[%clk 0:00:03]} 57. Ke3 {[%clk 0:00:26]}  Rxd4 {[%clk 0:00:03]} 58. Kf3 {[%clk 0:00:24]}  g2 {[%clk 0:00:04]} 0-1


[Site "https://www.chess.com"]

[Event "Titled Tuesday Blitz April 4 Early 2023"]
[White "Dehtiarov, Roman"]
[Black "Castellanos Villela, Alejandro"]
[WhiteFideId "14186640"]
[BlackFideId "3446379"]
[WhiteElo "2189"]
[BlackElo "2103"]
[Result "1-0"]
[Round "06"]
[TimeControl "180+2"]
[Date "2023.04.04"]
[WhiteClock "0:02:35"]
[BlackClock "0:01:14"]

1. d4 {[%clk 0:03:00]}  Nf6 {[%clk 0:02:59]} 2. c4 {[%clk 0:03:00]}  e6 {[%clk 0:02:59]} 3. Nf3 {[%clk 0:02:59]}  c5 {[%clk 0:03:00]} 4. d5 {[%clk 0:02:57]}  exd5 {[%clk 0:03:01]} 5. cxd5 {[%clk 0:02:58]}  d6 {[%clk 0:03:02]} 6. Nc3 {[%clk 0:02:58]}  g6 {[%clk 0:03:02]} 7. e4 {[%clk 0:02:59]}  Bg7 {[%clk 0:03:03]} 8. Bd3 {[%clk 0:02:59]}  O-O {[%clk 0:03:02]} 9. O-O {[%clk 0:03:00]}  Bg4 {[%clk 0:03:02]} 10. a4 {[%clk 0:02:59]}  Nbd7 {[%clk 0:03:00]} 11. h3 {[%clk 0:03:00]}  Bxf3 {[%clk 0:02:59]} 12. Qxf3 {[%clk 0:03:01]}  Re8 {[%clk 0:02:59]} 13. Qd1 {[%clk 0:03:00]}  a6 {[%clk 0:02:55]} 14. f4 {[%clk 0:03:00]}  Qc7 {[%clk 0:02:50]} 15. Be3 {[%clk 0:02:57]}  c4 {[%clk 0:02:47]} 16. Bc2 {[%clk 0:02:57]}  Nc5 {[%clk 0:02:32]} 17. e5 {[%clk 0:02:57]}  dxe5 {[%clk 0:02:15]} 18. fxe5 {[%clk 0:02:58]}  Rxe5 {[%clk 0:02:11]} 19. Bf4 {[%clk 0:02:56]}  Nh5 {[%clk 0:02:08]} 20. Bxe5 {[%clk 0:02:55]}  Qxe5 {[%clk 0:02:07]} 21. Qf3 {[%clk 0:02:53]}  f5 {[%clk 0:01:58]} 22. Rae1 {[%clk 0:02:51]}  Qd6 {[%clk 0:01:54]} 23. g4 {[%clk 0:02:41]}  Ng3 {[%clk 0:01:42]} 24. Rf2 {[%clk 0:02:35]}  fxg4 {[%clk 0:01:41]} 25. Qf7+ {[%clk 0:02:33]}  Kh8 {[%clk 0:01:40]} 26. Re8+ {[%clk 0:02:33]}  Rxe8 {[%clk 0:01:33]} 27. Qxe8+ {[%clk 0:02:34]}  Bf8 {[%clk 0:01:30]} 28. Qxf8+ {[%clk 0:02:34]}  Qxf8 {[%clk 0:01:30]} 29. Rxf8+ {[%clk 0:02:35]}  Kg7 {[%clk 0:01:30]} 30. Rc8 {[%clk 0:02:36]}  Nd3 {[%clk 0:01:28]} 31. Bxd3 {[%clk 0:02:35]}  cxd3 {[%clk 0:01:29]} 32. hxg4 {[%clk 0:02:35]}  d2 {[%clk 0:01:18]} 33. Nd1 {[%clk 0:02:36]}  h5 {[%clk 0:01:14]} 34. d6 {[%clk 0:02:35]} 1-0


[Site "https://www.chess.com"]

[Event "Titled Tuesday Blitz April 4 Early 2023"]
[White "Grunberg, Mihai-Lucian"]
[Black "Wagner, Dennis"]
[WhiteFideId "1204149"]
[BlackFideId "24650684"]
[WhiteElo "2363"]
[BlackElo "2470"]
[Result "0-1"]
[Round "06"]
[TimeControl "180+2"]
[Date "2023.04.04"]
[WhiteClock "0:00:10"]
[BlackClock "0:00:04"]

1. Nf3 {[%clk 0:03:00]}  c5 {[%clk 0:03:00]} 2. c4 {[%clk 0:02:59]}  Nc6 {[%clk 0:03:00]} 3. d4 {[%clk 0:02:59]}  cxd4 {[%clk 0:03:00]} 4. Nxd4 {[%clk 0:03:00]}  Nf6 {[%clk 0:03:00]} 5. Nc3 {[%clk 0:03:00]}  e6 {[%clk 0:03:01]} 6. g3 {[%clk 0:02:59]}  d5 {[%clk 0:03:01]} 7. Bg2 {[%clk 0:02:56]}  Bc5 {[%clk 0:02:58]} 8. Nb3 {[%clk 0:02:53]}  Bb6 {[%clk 0:02:59]} 9. cxd5 {[%clk 0:02:52]}  exd5 {[%clk 0:02:59]} 10. Nxd5 {[%clk 0:02:47]}  Be6 {[%clk 0:02:48]} 11. Bg5 {[%clk 0:02:33]}  Bxf2+ {[%clk 0:02:34]} 12. Kxf2 {[%clk 0:02:25]}  Ng4+ {[%clk 0:02:34]} 13. Ke1 {[%clk 0:02:15]}  Qxg5 {[%clk 0:02:34]} 14. Nc7+ {[%clk 0:02:15]}  Ke7 {[%clk 0:02:34]} 15. Nxa8 {[%clk 0:02:11]}  Qe3 {[%clk 0:02:18]} 16. Rf1 {[%clk 0:01:58]}  Nxh2 {[%clk 0:02:04]} 17. Rf2 {[%clk 0:01:07]}  Ng4 {[%clk 0:01:55]} 18. Rf3 {[%clk 0:01:04]}  Qg1+ {[%clk 0:01:55]} 19. Bf1 {[%clk 0:01:03]}  Rxa8 {[%clk 0:01:55]} 20. Qc2 {[%clk 0:00:59]}  Nge5 {[%clk 0:01:21]} 21. Rf2 {[%clk 0:00:47]}  Qxg3 {[%clk 0:01:18]} 22. Qc5+ {[%clk 0:00:47]}  Ke8 {[%clk 0:01:14]} 23. Bg2 {[%clk 0:00:45]}  Rd8 {[%clk 0:00:41]} 24. Rd1 {[%clk 0:00:38]}  Rxd1+ {[%clk 0:00:30]} 25. Kxd1 {[%clk 0:00:38]}  Bxb3+ {[%clk 0:00:28]} 26. axb3 {[%clk 0:00:37]}  Qxb3+ {[%clk 0:00:29]} 27. Qc2 {[%clk 0:00:35]}  Qb6 {[%clk 0:00:14]} 28. Bxc6+ {[%clk 0:00:31]}  Nxc6 {[%clk 0:00:09]} 29. Rg2 {[%clk 0:00:24]}  Qd4+ {[%clk 0:00:08]} 30. Qd2 {[%clk 0:00:20]}  g6 {[%clk 0:00:07]} 31. Qxd4 {[%clk 0:00:15]}  Nxd4 {[%clk 0:00:08]} 32. Kd2 {[%clk 0:00:15]}  h5 {[%clk 0:00:08]} 33. Kd3 {[%clk 0:00:16]}  Ne6 {[%clk 0:00:08]} 34. e3 {[%clk 0:00:16]}  Kd7 {[%clk 0:00:08]} 35. Ke4 {[%clk 0:00:16]}  Kd6 {[%clk 0:00:08]} 36. Rd2+ {[%clk 0:00:15]}  Ke7 {[%clk 0:00:07]} 37. Ke5 {[%clk 0:00:16]}  f6+ {[%clk 0:00:08]} 38. Ke4 {[%clk 0:00:17]}  Ng5+ {[%clk 0:00:07]} 39. Kf4 {[%clk 0:00:17]}  h4 {[%clk 0:00:07]} 40. Kg4 {[%clk 0:00:16]}  h3 {[%clk 0:00:07]} 41. Rc2 {[%clk 0:00:17]}  Ke6 {[%clk 0:00:07]} 42. Rc4 {[%clk 0:00:16]}  Kd5 {[%clk 0:00:07]} 43. Rc7 {[%clk 0:00:15]}  b5 {[%clk 0:00:06]} 44. Rxa7 {[%clk 0:00:15]}  h2 {[%clk 0:00:06]} 45. Ra1 {[%clk 0:00:16]}  Ne4 {[%clk 0:00:06]} 46. Kf3 {[%clk 0:00:15]}  Nd2+ {[%clk 0:00:03]} 47. Kg2 {[%clk 0:00:15]}  Nc4 {[%clk 0:00:03]} 48. b3 {[%clk 0:00:15]}  Nxe3+ {[%clk 0:00:03]} 49. Kxh2 {[%clk 0:00:15]}  f5 {[%clk 0:00:03]} 50. Kg3 {[%clk 0:00:15]}  Nc2 {[%clk 0:00:03]} 51. Rc1 {[%clk 0:00:13]}  Nd4 {[%clk 0:00:04]} 52. Rd1 {[%clk 0:00:12]}  Ke4 {[%clk 0:00:04]} 53. Re1+ {[%clk 0:00:12]}  Kd3 {[%clk 0:00:04]} 54. b4 {[%clk 0:00:10]}  Kc4 {[%clk 0:00:04]} 55. Kf4 {[%clk 0:00:10]}  Kxb4 {[%clk 0:00:05]} 56. Kg5 {[%clk 0:00:11]}  Nf3+ {[%clk 0:00:04]} 57. Kxg6 {[%clk 0:00:10]}  Nxe1 {[%clk 0:00:04]} 0-1


[Site "https://www.chess.com"]

[Event "Titled Tuesday Blitz April 4 Early 2023"]
[White "Orlov, Georgi"]
[Black "Weetik, Vjacheslav"]
[WhiteFideId "2011271"]
[BlackFideId "4153472"]
[WhiteElo "2557"]
[BlackElo "2469"]
[Result "1-0"]
[Round "06"]
[TimeControl "180+2"]
[Date "2023.04.04"]
[WhiteClock "0:00:18"]
[BlackClock "0:00:01"]

1. d4 {[%clk 0:03:00]}  Nf6 {[%clk 0:02:59]} 2. Nf3 {[%clk 0:03:00]}  e6 {[%clk 0:03:00]} 3. c4 {[%clk 0:03:00]}  d5 {[%clk 0:03:00]} 4. Nc3 {[%clk 0:02:59]}  Be7 {[%clk 0:03:00]} 5. g3 {[%clk 0:02:57]}  O-O {[%clk 0:02:53]} 6. Bg2 {[%clk 0:02:56]}  c6 {[%clk 0:02:48]} 7. O-O {[%clk 0:02:55]}  Nbd7 {[%clk 0:02:48]} 8. b3 {[%clk 0:02:51]}  b6 {[%clk 0:02:48]} 9. Bb2 {[%clk 0:02:49]}  Ba6 {[%clk 0:02:47]} 10. cxd5 {[%clk 0:02:34]}  cxd5 {[%clk 0:02:46]} 11. Rc1 {[%clk 0:02:30]}  Rc8 {[%clk 0:02:46]} 12. Nd2 {[%clk 0:02:21]}  Nb8 {[%clk 0:02:24]} 13. Re1 {[%clk 0:01:44]}  Nc6 {[%clk 0:02:23]} 14. Nf3 {[%clk 0:01:44]}  Ne4 {[%clk 0:02:04]} 15. Nxe4 {[%clk 0:01:36]}  dxe4 {[%clk 0:02:04]} 16. Ne5 {[%clk 0:01:36]}  Nxe5 {[%clk 0:02:02]} 17. dxe5 {[%clk 0:01:36]}  e3 {[%clk 0:01:56]} 18. fxe3 {[%clk 0:01:28]}  Bb4 {[%clk 0:01:50]} 19. Rxc8 {[%clk 0:01:19]}  Qxc8 {[%clk 0:01:35]} 20. Rf1 {[%clk 0:01:19]}  Bb7 {[%clk 0:01:11]} 21. Bxb7 {[%clk 0:01:12]}  Qxb7 {[%clk 0:01:11]} 22. Rf4 {[%clk 0:01:12]}  Be7 {[%clk 0:01:09]} 23. Qd3 {[%clk 0:01:02]}  h6 {[%clk 0:00:46]} 24. b4 {[%clk 0:01:00]}  a5 {[%clk 0:00:42]} 25. b5 {[%clk 0:00:58]}  Rc8 {[%clk 0:00:38]} 26. Rc4 {[%clk 0:00:52]}  Bc5 {[%clk 0:00:29]} 27. Bd4 {[%clk 0:00:51]}  Rd8 {[%clk 0:00:28]} 28. Qc2 {[%clk 0:00:46]}  Bb4 {[%clk 0:00:07]} 29. a4 {[%clk 0:00:40]}  Qd5 {[%clk 0:00:04]} 30. Rc8 {[%clk 0:00:29]}  Rxc8 {[%clk 0:00:04]} 31. Qxc8+ {[%clk 0:00:28]}  Kh7 {[%clk 0:00:05]} 32. Qc2+ {[%clk 0:00:28]}  Kg8 {[%clk 0:00:05]} 33. Bxb6 {[%clk 0:00:24]}  Qxe5 {[%clk 0:00:06]} 34. Bd4 {[%clk 0:00:23]}  Qd5 {[%clk 0:00:04]} 35. Qc6 {[%clk 0:00:21]}  Qb3 {[%clk 0:00:01]} 36. Kg2 {[%clk 0:00:21]}  Qb1 {[%clk 0:00:01]} 37. b6 {[%clk 0:00:20]}  Be7 {[%clk 0:00:02]} 38. b7 {[%clk 0:00:19]}  Bf6 {[%clk 0:00:01]} 39. Ba7 {[%clk 0:00:18]} 1-0


[Site "https://www.chess.com"]

[Event "Titled Tuesday Blitz April 4 Early 2023"]
[White "Pham, Le Thao Nguyen"]
[Black "Rohith Krishna S"]
[WhiteFideId "12401226"]
[BlackFideId "46617051"]
[WhiteElo "2286"]
[BlackElo "2270"]
[Result "0-1"]
[Round "06"]
[TimeControl "180+2"]
[Date "2023.04.04"]
[WhiteClock "0:00:04"]
[BlackClock "0:01:27"]

1. d4 {[%clk 0:03:00]}  Nf6 {[%clk 0:02:57]} 2. Nf3 {[%clk 0:02:59]}  g6 {[%clk 0:02:57]} 3. c4 {[%clk 0:02:49]}  Bg7 {[%clk 0:02:57]} 4. Nc3 {[%clk 0:02:49]}  O-O {[%clk 0:02:58]} 5. e4 {[%clk 0:02:49]}  d6 {[%clk 0:02:55]} 6. Bd3 {[%clk 0:02:45]}  e5 {[%clk 0:02:50]} 7. O-O {[%clk 0:02:37]}  Nc6 {[%clk 0:02:49]} 8. d5 {[%clk 0:02:31]}  Nd4 {[%clk 0:02:49]} 9. h3 {[%clk 0:01:48]}  c5 {[%clk 0:02:31]} 10. dxc6 {[%clk 0:01:41]}  bxc6 {[%clk 0:02:30]} 11. Be3 {[%clk 0:01:32]}  c5 {[%clk 0:02:29]} 12. Re1 {[%clk 0:01:23]}  Ne8 {[%clk 0:02:08]} 13. Nd5 {[%clk 0:01:15]}  Nc7 {[%clk 0:02:08]} 14. Rb1 {[%clk 0:01:06]}  Nxd5 {[%clk 0:02:06]} 15. cxd5 {[%clk 0:01:00]}  a5 {[%clk 0:02:07]} 16. b3 {[%clk 0:00:43]}  f5 {[%clk 0:02:05]} 17. exf5 {[%clk 0:00:40]}  gxf5 {[%clk 0:01:56]} 18. Nd2 {[%clk 0:00:24]}  Qh4 {[%clk 0:01:45]} 19. f4 {[%clk 0:00:22]}  e4 {[%clk 0:01:42]} 20. Bc4 {[%clk 0:00:16]}  Rf6 {[%clk 0:01:42]} 21. Nf1 {[%clk 0:00:13]}  Rg6 {[%clk 0:01:42]} 22. Kh1 {[%clk 0:00:13]}  Bf6 {[%clk 0:01:39]} 23. Qd2 {[%clk 0:00:13]}  Ra7 {[%clk 0:01:39]} 24. Qf2 {[%clk 0:00:13]}  Qh6 {[%clk 0:01:38]} 25. Kh2 {[%clk 0:00:04]}  Rag7 {[%clk 0:01:38]} 26. g3 {[%clk 0:00:04]}  Bh4 {[%clk 0:01:27]} 0-1


[Site "https://www.chess.com"]